bitfinex/quotes_BTCUSD_20241120
["timestamp","ask_amount","ask_price","bid_price","bid_amount"]
[1732108618198,0.10711512,94151.0,94101.0,0.09289263]
[1732108618199,0.10711512,94144.0,94101.0,0.09289263]
[1732108618204,0.10711512,94144.0,94127.0,0.0017098]
[1732108618408,0.00781115,94148.0,94147.0,0.074351]
[1732108619445,0.11492627,94148.0,94147.0,0.074351]
[1732108620486,0.11492627,94148.0,94126.0,0.074367]
[1732108620487,0.00781115,94143.0,94138.0,0.074358]
[1732108620699,0.10711512,94139.0,94138.0,0.074358]
[1732108620915,0.212428,94150.0,94138.0,0.074358]
[1732108620916,0.22013315,94197.0,94196.0,0.09]
[1732108621137,0.22013315,94197.0,94146.0,0.074352]
[1732108621138,0.00781115,94172.0,94146.0,0.074352]
[1732108621356,0.00781115,94172.0,94131.0,0.0776]
[1732108621357,0.00781115,94172.0,94171.0,0.074332]
[1732108621811,0.00781115,94172.0,94171.0,0.148664]
[1732108622039,0.11492627,94172.0,94171.0,0.074332]
[1732108622511,0.11492627,94172.0,94167.0,0.074335]
[1732108622512,0.00781115,94170.0,94167.0,0.074335]
[1732108622768,0.00781115,94170.0,94169.0,0.074334]
[1732108623015,0.0466,94180.0,94148.0,0.1]
[1732108623016,0.0466,94180.0,94150.0,0.074349]
[1732108623249,0.0466,94180.0,94107.0,0.09289263]
[1732108623250,0.0466,94180.0,94179.0,0.074326]
[1732108623936,0.10711512,94180.0,94155.0,0.1]
[1732108624167,0.10711512,94172.0,94155.0,0.023]
[1732108624425,0.10711512,94172.0,94171.0,0.074332]
[1732108627278,0.10711512,94172.0,94146.0,0.074352]
[1732108627279,0.106192,94169.0,94139.0,0.074358]
[1732108627487,0.106192,94169.0,94162.0,0.074339]
[1732108627701,0.0503,94200.0,94191.0,0.074317]
[1732108627916,0.0503,94200.0,94105.0,0.01191784]
[1732108627917,0.0503,94200.0,94199.0,0.07431]
[1732108628137,0.001,94200.0,94199.0,0.07431]
[1732108628746,0.001,94200.0,94199.0,0.073292]
[1732108628959,0.10811512,94200.0,94199.0,0.073292]
[1732108629164,0.10811512,94200.0,94190.0,0.074317]
[1732108629416,0.10711512,94191.0,94167.0,0.1]
[1732108629619,0.0479,94199.0,94167.0,0.1]
[1732108629826,0.0479,94199.0,94185.0,0.074321]
[1732108630041,0.0479,94199.0,94167.0,0.1]
[1732108630042,0.0815,94198.0,94167.0,0.1]
[1732108630254,0.001,94200.0,94199.0,0.07431]
[1732108630699,0.10811512,94200.0,94199.0,0.07431]
[1732108631083,0.10811512,94200.0,94199.0,0.07418388]
[1732108631754,0.10811512,94200.0,94195.0,0.074313]
[1732108631976,0.001,94200.0,94199.0,0.07431]
[1732108632894,0.001,94200.0,94197.0,0.074311]
[1732108633101,0.001,94200.0,94199.0,0.07431]
[1732108633367,0.10811512,94200.0,94199.0,0.07431]
[1732108634802,0.10811512,94200.0,94199.0,0.084926]
[1732108635645,0.10811512,94200.0,94173.0,0.01]
[1732108635646,0.01,94196.0,94156.0,0.084964]
[1732108635859,0.10711512,94172.0,94169.0,0.084952]
[1732108636072,0.10711512,94170.0,94169.0,0.084952]
[1732108637875,0.06211512,94170.0,94169.0,0.084952]
[1732108638536,0.06211512,94170.0,94168.0,0.084954]
[1732108638741,4e-05,94172.0,94171.0,0.084951]
[1732108640026,0.10715512,94172.0,94171.0,0.084951]
[1732108641324,0.10715512,94172.0,94171.0,0.080051]
[1732108643700,0.09715512,94172.0,94171.0,0.080051]
[1732108643905,0.008319,94199.0,94198.0,0.084927]
[1732108644151,0.11543412,94199.0,94198.0,0.084927]
[1732108645454,0.11543412,94199.0,94198.0,0.074311]
[1732108645662,0.11543412,94199.0,94176.0,0.1]
[1732108645890,0.11543412,94199.0,94156.0,0.09295544]
[1732108645891,0.10711512,94177.0,94171.0,0.074332]
[1732108646118,0.21235,94184.0,94171.0,0.074332]
[1732108646119,0.10711512,94172.0,94171.0,0.074332]
[1732108646569,0.10711512,94172.0,94156.0,0.09295544]
[1732108646790,0.009319,94199.0,94156.0,0.09295544]
[1732108646791,0.10711512,94157.0,94156.0,0.16729944]
[1732108647891,0.10711512,94157.0,94148.0,0.07435]
[1732108648095,0.22237,94176.0,94141.0,0.23243935]
[1732108648096,0.10632081,94150.0,94142.0,0.074354]
[1732108648309,0.10628705,94148.0,94142.0,0.074354]
[1732108648512,0.0791,94198.0,94141.0,0.23243935]
[1732108648513,0.10634083,94146.0,94145.0,0.49268943]
[1732108649160,0.0475,94167.0,94146.0,0.074352]
[1732108649368,0.0475,94167.0,94141.0,0.23243935]
[1732108649369,0.10711512,94147.0,94141.0,0.23243935]
[1732108649576,0.0771,94162.0,94138.0,6.0]
[1732108649577,0.106225,94139.0,94138.0,3.0002]
[1732108649828,0.21334012,94139.0,94138.0,3.0002]
[1732108650881,0.21334012,94139.0,94138.0,2.99062456]
[1732108651085,0.26194012,94139.0,94138.0,1.44408377]
[1732108651292,0.26194012,94139.0,94138.0,1.41023159]
[1732108651502,0.10711512,94139.0,94138.0,1.41023159]
[1732108651710,0.21334012,94139.0,94138.0,1.41023159]
[1732108652113,0.10711512,94139.0,94138.0,1.41023159]
[1732108652371,0.10711512,94139.0,94138.0,1.48458959]
[1732108652770,0.06211512,94139.0,94138.0,1.48458959]
[1732108654601,0.06211512,94139.0,94138.0,1.49521259]
[1732108654825,0.06211512,94139.0,94138.0,1.41023159]
[1732108655056,0.06211512,94139.0,94138.0,1.49521259]
[1732108655526,0.06211512,94139.0,94138.0,1.41023159]
[1732108655790,0.06211512,94139.0,94108.0,0.01]
[1732108656028,0.10711512,94117.0,94116.0,0.085001]
[1732108656356,0.10711512,94117.0,94113.0,0.01]
[1732108656357,0.10711512,94117.0,94114.0,0.085002]
[1732108656578,0.10711512,94117.0,94116.0,0.085001]
[1732108656804,0.10711512,94117.0,94116.0,0.080001]
[1732108657049,0.10711512,94117.0,94109.0,0.085007]
[1732108657050,0.0757,94158.0,94155.0,0.084965]
[1732108657267,0.10711512,94156.0,94129.0,0.01]
[1732108657519,0.106206,94157.0,94150.0,0.084969]
[1732108657743,0.106206,94157.0,94149.0,0.084971]
[1732108657744,0.0757,94158.0,94149.0,0.08497]
[1732108657972,0.0757,94158.0,94134.0,0.01]
[1732108657973,0.106207,94156.0,94134.0,0.01]
[1732108658234,0.106216,94147.0,94126.0,0.084992]
[1732108658460,0.106216,94147.0,94115.0,0.1]
[1732108658461,0.212419,94154.0,94134.0,0.084984]
[1732108658713,0.10711512,94135.0,94134.0,0.084985]
[1732108659333,0.10711512,94135.0,94134.0,0.204985]
[1732108659755,0.10711512,94135.0,94134.0,0.194985]
[1732108660156,0.10711512,94135.0,94134.0,0.204985]
[1732108660432,0.0008545,94170.0,94145.0,0.01]
[1732108660728,0.0008545,94170.0,94144.0,0.01]
[1732108660729,0.0008545,94170.0,94169.0,0.084953]
[1732108661670,0.0008545,94170.0,94146.0,0.01]
[1732108661671,0.10796962,94170.0,94151.0,0.01]
[1732108661883,0.10796962,94170.0,94169.0,0.084953]
[1732108662529,0.10796962,94170.0,94167.0,0.084954]
[1732108662789,0.0008545,94170.0,94169.0,0.084953]
[1732108664036,0.10796962,94170.0,94169.0,0.084953]
[1732108664720,0.10796962,94170.0,94167.0,0.084954]
[1732108664956,0.10796962,94170.0,94169.0,0.084953]
[1732108664957,0.0008545,94170.0,94169.0,0.084953]
[1732108665426,0.0008545,94170.0,94149.0,0.084971]
[1732108665427,0.106207,94156.0,94149.0,0.084971]
[1732108665652,0.106207,94156.0,94124.0,0.084993]
[1732108665653,0.106211,94153.0,94124.0,0.084993]
[1732108665909,0.106207,94156.0,94147.0,0.084972]
[1732108666155,0.106212,94152.0,94146.0,0.084973]
[1732108666401,0.10711512,94147.0,94146.0,0.084974]
[1732108666637,0.10711512,94147.0,94097.0,0.01]
[1732108666638,0.10711512,94154.0,94153.0,0.02]
[1732108666881,0.10711512,94154.0,94153.0,0.104888]
[1732108667101,0.10711512,94154.0,94153.0,0.094968]
[1732108667819,0.06211512,94154.0,94153.0,0.094968]
[1732108670229,0.06211512,94154.0,94153.0,0.084968]
[1732108671273,0.06211512,94154.0,94128.0,0.09491]
[1732108671274,0.06211512,94154.0,94144.0,0.084975]
[1732108671555,0.10711512,94145.0,94144.0,0.084976]
[1732108673075,0.2132375,94170.0,94169.0,0.084953]
[1732108673076,0.0008545,94170.0,94169.0,0.084953]
[1732108673284,0.0008545,94170.0,94145.0,0.084975]
[1732108673513,0.0008545,94170.0,94142.0,0.01]
[1732108673733,0.0008545,94170.0,94159.0,0.084961]
[1732108673974,0.0008545,94170.0,94138.0,0.0017096]
[1732108673975,0.0008545,94170.0,94169.0,0.084553]
[1732108674211,0.0008545,94170.0,94169.0,0.094553]
[1732108675318,0.0008545,94170.0,94169.0,0.104473]
[1732108675532,0.10796962,94170.0,94169.0,0.104473]
[1732108675955,0.10796962,94170.0,94169.0,0.094553]
[1732108676810,0.10796962,94170.0,94169.0,0.104473]
[1732108677953,0.10796962,94170.0,94169.0,0.094553]
[1732108678157,0.10796962,94170.0,94169.0,0.104473]
[1732108679586,0.10796962,94170.0,94169.0,0.094553]
[1732108680021,0.10796962,94170.0,94167.0,0.1]
[1732108680198,0.10711512,94169.0,94168.0,0.084954]
[1732108681649,0.10711512,94169.0,94145.0,0.00992]
[1732108681650,0.10711512,94169.0,94137.0,0.00992]
[1732108681857,0.10711512,94150.0,94149.0,0.084971]
[1732108682273,0.10711512,94150.0,94138.0,0.0866906]
[1732108682478,0.0008545,94170.0,94138.0,0.0017096]
[1732108682479,0.10711512,94139.0,94138.0,0.0017096]
[1732108682892,0.06211512,94139.0,94138.0,0.0866906]
[1732108683118,0.16834012,94139.0,94138.0,0.0017096]
[1732108683245,0.16834012,94139.0,94116.0,0.001709]
[1732108683246,0.14311512,94139.0,94127.0,0.084991]
[1732108683458,0.10711512,94128.0,94127.0,0.084991]
[1732108683838,0.0492,94159.0,94158.0,0.084963]
[1732108684129,0.10711512,94159.0,94158.0,0.084963]
[1732108685055,0.10711512,94159.0,94158.0,0.094883]
[1732108685871,0.10711512,94159.0,94158.0,0.084963]
[1732108686937,0.10711512,94159.0,94158.0,0.0847485]
[1732108687158,0.106209,94154.0,94128.0,0.00992]
[1732108687363,0.10711512,94138.0,94137.0,0.084982]
[1732108688956,0.212411,94157.0,94137.0,0.084982]
[1732108688957,0.0777,94173.0,94145.0,0.00992]
[1732108689104,0.212291,94211.0,94169.0,0.084953]
[1732108689105,0.12071542,94188.0,94169.0,0.084953]
[1732108690094,0.0454,94191.0,94169.0,0.084953]
[1732108690300,0.10796962,94170.0,94169.0,0.084953]
[1732108691191,0.10796962,94170.0,94168.0,0.0005]
[1732108691415,0.10711512,94169.0,94168.0,0.0005]
[1732108691652,0.10711512,94169.0,94168.0,0.085454]
[1732108692948,0.10711512,94169.0,94168.0,0.0005]
[1732108693184,0.21330712,94169.0,94168.0,0.0005]
[1732108693633,0.17042224,94169.0,94168.0,0.0005]
[1732108693849,0.21330712,94169.0,94168.0,0.0005]
[1732108695067,0.31949912,94169.0,94143.0,0.00992]
[1732108695332,0.10711512,94166.0,94165.0,0.084957]
[1732108695565,0.10711512,94166.0,94160.0,0.084961]
[1732108695797,0.10711512,94166.0,94162.0,0.084959]
[1732108696024,0.10711512,94166.0,94160.0,0.084961]
[1732108696519,0.21331112,94166.0,94161.0,0.08496]
[1732108696743,0.0008545,94170.0,94150.0,0.08497]
[1732108696744,0.10711512,94164.0,94150.0,0.08497]
[1732108696970,0.10711512,94162.0,94154.0,0.084967]
[1732108697216,0.0008545,94170.0,94141.0,0.00992]
[1732108697217,0.10711512,94158.0,94141.0,0.00992]
[1732108697457,0.10711512,94158.0,94155.0,0.084965]
[1732108697695,0.10711512,94158.0,94157.0,0.084964]
[1732108697950,0.04324722,94172.0,94157.0,0.084964]
[1732108697951,0.0008545,94170.0,94163.0,0.084958]
[1732108698197,0.0008545,94170.0,94169.0,0.084953]
[1732108699476,0.10796962,94170.0,94169.0,0.084953]
[1732108702329,0.10796962,94170.0,94169.0,0.094873]
[1732108702330,0.0008545,94170.0,94169.0,0.094873]
[1732108702554,0.0008545,94170.0,94169.0,0.084953]
[1732108702784,0.10796962,94170.0,94169.0,0.084953]
[1732108703494,0.10796962,94170.0,94153.0,0.084968]
[1732108703738,0.10796962,94170.0,94142.0,0.24045106]
[1732108703739,0.10711512,94168.0,94149.0,0.00992]
[1732108704240,0.10711512,94168.0,94167.0,0.084955]
[1732108705655,0.10711512,94168.0,94147.0,0.00992]
[1732108705911,0.10711512,94159.0,94158.0,0.084963]
[1732108706855,0.10711512,94159.0,94137.0,0.052365]
[1732108707086,0.10711512,94158.0,94156.0,0.084964]
[1732108707317,0.10711512,94158.0,94155.0,0.084965]
[1732108707551,0.0008545,94170.0,94155.0,0.084965]
[1732108707552,0.10711512,94156.0,94155.0,0.084966]
[1732108708051,0.10711512,94156.0,94155.0,0.094886]
[1732108708281,0.0008548,94159.0,94155.0,0.094886]
[1732108708282,0.0008548,94159.0,94158.0,0.094883]
[1732108708514,0.10796992,94159.0,94158.0,0.084963]
[1732108710511,0.10796992,94159.0,94158.0,0.094883]
[1732108710968,0.10796992,94159.0,94158.0,0.084963]
[1732108712625,0.0008548,94159.0,94158.0,0.094883]
[1732108712845,0.009319,94199.0,94181.0,0.084942]
[1732108712846,0.10617,94189.0,94181.0,0.084942]
[1732108713075,0.106179,94180.0,94173.0,0.084949]
[1732108713303,0.212344,94187.0,94176.0,0.084946]
[1732108713304,0.10711512,94178.0,94176.0,0.084946]
[1732108713550,0.10711512,94178.0,94177.0,0.084946]
[1732108714496,0.10711512,94178.0,94177.0,0.094866]
[1732108715736,0.10711512,94178.0,94177.0,0.084946]
[1732108717442,0.10711512,94178.0,94172.0,0.08495]
[1732108717675,0.10711512,94178.0,94148.0,0.19015106]
[1732108717676,0.10711512,94178.0,94174.0,0.084948]
[1732108717893,0.10711512,94175.0,94163.0,0.084959]
[1732108718101,0.10711512,94175.0,94140.0,0.22971208]
[1732108718102,0.10711512,94166.0,94140.0,0.042444]
[1732108718315,0.10711512,94165.0,94151.0,0.084969]
[1732108718801,0.10711512,94159.0,94158.0,0.084963]
[1732108721300,0.10711512,94159.0,94158.0,0.0866754]
[1732108721979,0.0008562,94178.0,94159.0,0.254886]
[1732108722210,0.0008562,94178.0,94177.0,0.084946]
[1732108722426,0.10797132,94178.0,94177.0,0.084946]
[1732108722658,0.0008562,94178.0,94177.0,0.084946]
[1732108722878,0.10797132,94178.0,94177.0,0.084946]
[1732108725210,0.008319,94199.0,94177.0,0.084946]
[1732108725211,0.008319,94199.0,94198.0,0.095543]
[1732108725448,0.11543412,94199.0,94198.0,0.095543]
[1732108726061,0.008319,94199.0,94198.0,0.095543]
[1732108726266,0.11543412,94199.0,94198.0,0.095543]
[1732108727458,0.09312777,94243.0,94207.0,0.095534]
[1732108727656,0.20003615,94250.0,94232.0,0.095508]
[1732108727657,0.10711512,94233.0,94232.0,0.095508]
[1732108727834,0.06211512,94233.0,94232.0,0.095508]
[1732108728197,0.06211512,94233.0,94232.0,0.095348]
[1732108730374,0.0008548,94249.0,94248.0,0.095492]
[1732108730596,0.10796992,94249.0,94212.0,0.11]
[1732108730810,0.10711512,94248.0,94247.0,0.095493]
[1732108732594,0.10711512,94248.0,94238.0,0.095501]
[1732108732747,0.10711512,94248.0,94242.0,0.095498]
[1732108732961,0.10711512,94248.0,94209.0,0.095532]
[1732108732962,0.10711512,94247.0,94228.0,0.095512]
[1732108733211,0.10711512,94247.0,94216.0,0.04407051]
[1732108733410,0.0008548,94249.0,94246.0,0.095494]
[1732108733634,0.0008548,94249.0,94248.0,0.095492]
[1732108733838,0.10796992,94249.0,94248.0,0.095492]
[1732108734279,0.0008548,94249.0,94248.0,0.095492]
[1732108734615,0.10796992,94249.0,94248.0,0.095492]
[1732108735245,0.10796992,94249.0,94226.0,0.084901]
[1732108735246,0.106107,94245.0,94235.0,0.084894]
[1732108735454,0.10711512,94244.0,94243.0,0.084886]
[1732108735723,0.10711512,94244.0,94239.0,0.08489]
[1732108735912,0.10711512,94244.0,94219.0,0.084908]
[1732108736114,0.10711512,94244.0,94243.0,0.084886]
[1732108736517,0.10711512,94244.0,94241.0,0.084888]
[1732108736715,0.10711512,94244.0,94243.0,0.084886]
[1732108737355,0.10711512,94244.0,94204.0,0.0903]
[1732108737528,0.10711512,94244.0,94215.0,0.084912]
[1732108737696,0.10711512,94244.0,94205.0,0.1]
[1732108737697,0.10711512,94244.0,94241.0,0.084888]
[1732108737910,0.10711512,94244.0,94236.0,0.084892]
[1732108738106,0.10711512,94244.0,94234.0,0.084894]
[1732108738349,0.106108,94243.0,94237.0,0.084891]
[1732108738552,0.0008548,94249.0,94241.0,0.084888]
[1732108738553,0.10711512,94242.0,94241.0,0.084888]
[1732108738984,0.10711512,94242.0,94204.0,0.04287687]
[1732108739211,0.0455,94246.0,94204.0,0.04287687]
[1732108739212,0.10711512,94232.0,94204.0,0.04287687]
[1732108739423,0.10711512,94232.0,94203.0,0.084922]
[1732108739621,0.10711512,94232.0,94227.0,0.0849]
[1732108739827,0.10711512,94232.0,94203.0,0.084922]
[1732108739828,0.10711512,94232.0,94231.0,0.084897]
[1732108740057,0.10711512,94232.0,94205.0,0.084921]
[1732108740058,0.10711512,94232.0,94219.0,0.084908]
[1732108740262,0.10711512,94232.0,94231.0,0.084897]
[1732108741573,0.10711512,94232.0,94210.0,0.1]
[1732108741574,0.10711512,94232.0,94211.0,0.16983]
[1732108741807,0.10711512,94232.0,94229.0,0.084898]
[1732108742043,0.10711512,94232.0,94191.0,0.02]
[1732108742240,0.10711512,94232.0,94218.0,0.084909]
[1732108742450,0.10711512,94232.0,94220.0,0.084907]
[1732108742676,0.10711512,94232.0,94179.0,0.084944]
[1732108742677,0.10711512,94221.0,94204.0,0.084921]
[1732108742890,0.001,94229.0,94178.0,0.083]
[1732108742891,0.10711512,94211.0,94178.0,0.083]
[1732108743116,0.10711512,94211.0,94167.0,0.0459]
[1732108743117,0.06211512,94199.0,94167.0,0.0459]
[1732108743343,0.06211512,94199.0,94165.0,0.0832]
[1732108743595,0.06211512,94199.0,94161.0,0.01]
[1732108743797,0.10711512,94187.0,94169.0,0.084953]
[1732108744002,0.10711512,94187.0,94161.0,0.01]
[1732108744003,0.212345,94186.0,94161.0,0.01]
[1732108744210,0.10711512,94179.0,94161.0,0.01]
[1732108744471,0.0473,94199.0,94162.0,0.084959]
[1732108744741,0.0473,94199.0,94161.0,0.01]
[1732108744742,0.10711512,94192.0,94191.0,0.084933]
[1732108745615,0.25445069,94215.0,94176.0,0.0833]
[1732108745616,0.001,94213.0,94199.0,0.084926]
[1732108745808,0.01,94227.0,94206.0,0.08492]
[1732108745809,0.10711512,94212.0,94206.0,0.08492]
[1732108746096,0.10711512,94212.0,94195.0,0.0017112]
[1732108746097,0.10711512,94212.0,94208.0,0.084918]
[1732108746344,0.212266,94222.0,94195.0,0.0017112]
[1732108746345,0.10711512,94209.0,94195.0,0.0017112]
[1732108746748,0.10711512,94209.0,94208.0,0.084918]
[1732108746977,0.0872,94231.0,94195.0,0.0017112]
[1732108746978,0.0797,94244.0,94199.0,0.084926]
[1732108747181,0.001,94245.0,94199.0,0.084926]
[1732108747182,0.001,94245.0,94231.0,0.084897]
[1732108747393,0.106112,94240.0,94231.0,0.084897]
[1732108748037,0.212219,94242.0,94228.0,0.0849]
[1732108748290,0.212204,94249.0,94225.0,0.01]
[1732108748500,0.01,94253.0,94225.0,0.01]
[1732108748703,0.212211,94246.0,94232.0,0.084896]
[1732108748874,0.212211,94246.0,94226.0,0.084902]
[1732108748875,0.212227,94239.0,94222.0,0.01]
[1732108749083,0.01,94253.0,94222.0,0.01]
[1732108749084,0.106117,94236.0,94228.0,0.084899]
[1732108749316,0.01,94254.0,94228.0,0.0849]
[1732108749534,0.01,94254.0,94229.0,0.084899]
[1732108749535,0.106119,94234.0,94229.0,0.084899]
[1732108749749,0.10711512,94230.0,94204.0,0.01]
[1732108749954,0.212204,94249.0,94216.0,0.08491]
[1732108749955,0.106133,94222.0,94216.0,0.08491]
[1732108750170,0.10711512,94221.0,94217.0,0.08491]
[1732108750382,0.10711512,94221.0,94204.0,0.084921]
[1732108750383,0.10711512,94218.0,94196.0,0.01]
[1732108750587,0.096143,94212.0,94207.0,0.084918]
[1732108750810,0.10711512,94211.0,94196.0,0.01]
[1732108751025,0.10711512,94211.0,94200.0,0.084925]
[1732108751237,0.10711512,94211.0,94196.0,0.01]
[1732108751453,0.212293,94209.0,94198.0,0.084927]
[1732108751678,0.21327212,94200.0,94180.0,0.01]
[1732108752125,0.21327212,94200.0,94189.0,0.084934]
[1732108752379,0.21327212,94200.0,94191.0,0.084933]
[1732108752792,0.21327212,94200.0,94180.0,0.01]
[1732108752995,0.10711512,94200.0,94191.0,0.01]
[1732108753207,0.10711512,94200.0,94199.0,0.084967]
[1732108753649,0.02848047,94258.0,94207.0,0.01]
[1732108753650,0.0828,94240.0,94207.0,0.01]
[1732108753849,0.10711512,94226.0,94218.0,0.084909]
[1732108754045,0.10711512,94226.0,94222.0,0.084905]
[1732108754256,0.10711512,94226.0,94222.0,0.106131]
[1732108754466,0.10711512,94226.0,94224.0,0.106129]
[1732108754673,0.10711512,94226.0,94225.0,0.106128]
[1732108757124,0.1061,94251.0,94221.0,0.01]
[1732108757331,0.10711512,94242.0,94225.0,0.106128]
[1732108757532,0.1,94273.0,94238.0,0.106113]
[1732108757533,0.10711512,94241.0,94238.0,0.106113]
[1732108757737,0.06211512,94241.0,94240.0,0.106112]
[1732108757893,0.06211512,94241.0,94239.0,0.106112]
[1732108758097,0.06211512,94241.0,94221.0,0.01]
[1732108758098,0.06211512,94241.0,94237.0,0.106115]
[1732108758293,0.06211512,94241.0,94240.0,0.106112]
[1732108759062,0.06211512,94241.0,94234.0,0.106118]
[1732108759267,0.06211512,94241.0,94240.0,0.106112]
[1732108759481,0.06211512,94241.0,94235.0,0.106116]
[1732108759836,0.10711512,94240.0,94229.0,0.106123]
[1732108760056,0.10711512,94240.0,94201.0,0.1]
[1732108760057,0.10711512,94238.0,94210.0,0.01]
[1732108760268,0.10711512,94238.0,94208.0,0.01]
[1732108760269,0.10711512,94238.0,94227.0,0.106126]
[1732108760438,0.10711512,94238.0,94214.0,0.01]
[1732108760439,0.10711512,94238.0,94237.0,0.106115]
[1732108761267,0.10711512,94238.0,94231.0,0.106121]
[1732108761570,0.10711512,94238.0,94181.0,0.01]
[1732108761571,0.10711512,94238.0,94216.0,0.106138]
[1732108761708,0.10711512,94238.0,94237.0,0.106115]
[1732108762833,0.10711512,94238.0,94233.0,0.106118]
[1732108763015,0.10711512,94237.0,94233.0,0.106119]
[1732108763855,0.10711512,94237.0,94235.0,0.106116]
[1732108764057,0.10711512,94236.0,94235.0,0.106116]
[1732108764459,0.10711512,94236.0,94227.0,0.106126]
[1732108764750,0.10711512,94236.0,94228.0,0.0106126]
[1732108764963,0.10711512,94236.0,94234.0,0.106118]
[1732108765093,0.03368285,94274.0,94234.0,0.106118]
[1732108765094,0.078,94260.0,94234.0,0.106118]
[1732108765300,0.10711512,94256.0,94246.0,0.106104]
[1732108765483,0.10711512,94256.0,94222.0,0.01]
[1732108765484,0.10711512,94256.0,94247.0,0.106103]
[1732108765680,0.10711512,94256.0,94249.0,0.106101]
[1732108766015,0.10711512,94256.0,94248.0,0.0106103]
[1732108766220,0.10711512,94256.0,94247.0,0.106103]
[1732108766432,0.106095,94255.0,94241.0,0.10611]
[1732108766638,0.10711512,94250.0,94235.0,0.106116]
[1732108766796,0.12159399,94260.0,94247.0,0.106103]
[1732108766797,0.10711512,94249.0,94247.0,0.106103]
[1732108766996,0.10711512,94249.0,94248.0,0.0106103]
[1732108767457,0.10711512,94249.0,94245.0,0.106106]
[1732108767904,0.10711512,94249.0,94248.0,0.106103]
[1732108768116,0.10711512,94249.0,94231.0,0.106121]
[1732108768117,0.21321712,94249.0,94231.0,0.106121]
[1732108768363,0.10711512,94249.0,94224.0,4.1e-05]
[1732108768590,0.106103,94248.0,94238.0,0.106113]
[1732108768817,0.10711512,94247.0,94239.0,0.0106113]
[1732108769481,0.10711512,94247.0,94239.0,0.1167233]
[1732108769725,0.10711512,94247.0,94234.0,0.106118]
[1732108769987,0.10711512,94247.0,94218.0,0.01]
[1732108769988,0.10711512,94247.0,94221.0,0.0887]
[1732108770224,0.10711512,94247.0,94244.0,0.106106]
[1732108770434,0.10711512,94247.0,94226.0,0.106127]
[1732108770647,0.10711512,94247.0,94244.0,0.106107]
[1732108770858,0.10711512,94247.0,94242.0,0.106109]
[1732108771648,0.10711512,94247.0,94239.0,0.106112]
[1732108771877,0.10711512,94247.0,94244.0,0.106106]
[1732108772121,0.10711512,94247.0,94225.0,0.001711]
[1732108772347,0.10711512,94247.0,94231.0,0.106121]
[1732108772600,0.10711512,94247.0,94237.0,0.106115]
[1732108772812,0.06211512,94247.0,94226.0,0.0136952]
[1732108773029,0.06211512,94247.0,94227.0,0.01398968]
[1732108773259,0.06211512,94247.0,94225.0,0.001711]
[1732108773493,0.106105,94246.0,94228.0,0.106125]
[1732108773707,0.0008555,94249.0,94234.0,0.106117]
[1732108773708,0.10611,94242.0,94234.0,0.106117]
[1732108773985,0.106113,94240.0,94232.0,0.10612]
[1732108774220,0.10711512,94239.0,94232.0,0.10612]
[1732108775182,0.106114,94238.0,94228.0,0.106124]
[1732108775413,0.106113,94239.0,94231.0,0.106121]
[1732108775884,0.212214,94245.0,94232.0,0.10612]
[1732108775885,0.106109,94243.0,94232.0,0.10612]
[1732108776122,0.10711512,94242.0,94228.0,0.106125]
[1732108776367,0.10711512,94242.0,94234.0,0.106117]
[1732108776878,0.212182,94259.0,94225.0,0.001711]
[1732108776879,0.09486604,94263.0,94248.0,0.106102]
[1732108777106,0.09486604,94263.0,94225.0,0.001711]
[1732108777107,0.10711512,94258.0,94240.0,0.106111]
[1732108777329,0.10711512,94258.0,94225.0,0.001711]
[1732108777330,0.10711512,94258.0,94241.0,0.0106111]
[1732108777612,0.212188,94256.0,94243.0,0.106108]
[1732108777851,0.05059719,94268.0,94233.0,0.106119]
[1732108777852,0.1061,94251.0,94233.0,0.106119]
[1732108778066,0.05059719,94268.0,94234.0,0.318354]
[1732108778067,0.10551512,94250.0,94234.0,0.318354]
[1732108778280,0.10551512,94250.0,94243.0,0.106108]
[1732108778511,0.10551512,94250.0,94233.0,0.106119]
[1732108778512,0.10551512,94250.0,94242.0,0.106108]
[1732108778762,0.10551512,94250.0,94242.0,0.09517835]
[1732108779190,0.10551512,94250.0,94243.0,0.106108]
[1732108779401,0.21161512,94250.0,94241.0,0.106109]
[1732108779619,0.212203,94249.0,94226.0,0.106127]
[1732108779847,0.10711512,94248.0,94234.0,0.106118]
[1732108780069,0.106107,94245.0,94226.0,0.0080452]
[1732108780305,0.10711512,94244.0,94235.0,0.106117]
[1732108780521,0.10711512,94244.0,94232.0,0.10612]
[1732108780522,0.212217,94243.0,94232.0,0.10612]
[1732108780725,0.09486604,94261.0,94229.0,0.106124]
[1732108780726,0.10711512,94242.0,94233.0,0.106118]
[1732108780938,0.106112,94240.0,94225.0,0.001711]
[1732108781154,0.10711512,94239.0,94225.0,0.001711]
[1732108781381,0.10711512,94239.0,94227.0,0.106126]
[1732108781632,0.10711512,94239.0,94229.0,0.106124]
[1732108781839,0.10711512,94239.0,94225.0,0.001711]
[1732108782511,0.106118,94234.0,94225.0,0.001711]
[1732108782725,0.10613,94224.0,94209.0,0.106146]
[1732108782931,0.14229348,94252.0,94208.0,0.05889903]
[1732108782932,0.10711512,94223.0,94208.0,0.05889903]
[1732108783141,0.10711512,94223.0,94214.0,0.10614]
[1732108783353,0.10711512,94223.0,94199.0,0.08678004]
[1732108783571,0.10711512,94223.0,94215.0,0.106139]
[1732108783778,0.10711512,94223.0,94199.0,0.08678004]
[1732108783779,0.10711512,94223.0,94209.0,0.106146]
[1732108783962,0.10711512,94223.0,94214.0,0.10614]
[1732108784213,0.10711512,94223.0,94199.0,0.08678004]
[1732108784417,0.10711512,94223.0,94206.0,0.116765]
[1732108784418,0.212266,94221.0,94206.0,0.116765]
[1732108784630,0.10711512,94220.0,94208.0,0.106147]
[1732108784837,0.10711512,94220.0,94205.0,0.106151]
[1732108785051,0.10711512,94220.0,94208.0,0.0017108]
[1732108785052,0.21228,94215.0,94208.0,0.0017108]
[1732108785263,0.21228,94215.0,94199.0,0.30355304]
[1732108785264,0.10711512,94214.0,94199.0,0.18678004]
[1732108785481,0.212287,94212.0,94199.0,0.18678004]